bitfinex-derivatives/quotes_ETHF0:USTF0_20260204
["timestamp","ask_amount","ask_price","bid_price","bid_amount"]
[1770172423741,1.58,2256.5,2256.3,4.63036672]
[1770172423934,1.58,2256.5,2256.1,4.63036672]
[1770172424340,4.17088099,2256.5,2256.3,4.63036672]
[1770172424641,4.17088099,2256.5,2256.1,4.63036672]
[1770172425143,4.32538558,2256.5,2256.2,4.63036672]
[1770172425442,4.32538558,2256.5,2256.1,4.63036672]
[1770172425837,4.32538558,2256.5,2256.2,4.63036672]
[1770172426038,1.73450459,2256.5,2256.1,4.63036672]
[1770172426438,1.73450459,2256.5,2256.2,4.63036672]
[1770172426634,1.73450459,2256.5,2256.1,4.63036672]
[1770172427036,1.73450459,2256.5,2256.2,4.63036672]
[1770172427237,1.58,2256.5,2256.1,4.63036672]
[1770172427449,1.58,2256.5,2255.8,0.15997774]
[1770172427645,1.58,2256.5,2256.1,4.63036672]
[1770172428142,1.58,2256.5,2256.2,4.63036672]
[1770172428343,1.58,2256.5,2255.8,0.15997774]
[1770172428344,1.73450459,2256.5,2256.0,4.63036672]
[1770172428647,2.59088099,2256.6,2256.1,4.63036672]
[1770172428838,1.622,2256.4,2256.2,4.63036672]
[1770172429039,1.624,2256.4,2256.2,4.63036672]
[1770172429238,1.624,2256.4,2256.3,4.63036672]
[1770172429439,1.624,2256.4,2255.8,0.15997774]
[1770172429739,1.624,2256.4,2256.0,4.43910991]
[1770172430143,1.624,2256.4,2256.1,4.43910991]
[1770172430446,1.624,2256.4,2256.0,4.43910991]
[1770172430847,1.624,2256.4,2256.1,4.43910991]
[1770172431044,1.624,2256.4,2256.0,4.43910991]
[1770172431453,1.624,2256.4,2256.1,4.43910991]
[1770172431654,1.624,2256.4,2256.0,4.43910991]
[1770172431948,1.624,2256.4,2256.0,4.3725908]
[1770172432154,4.21488099,2256.4,2255.2,0.16828261]
[1770172432549,4.21488099,2256.4,2255.3,0.22201]
[1770172432754,1.642,2256.3,2255.6,0.16828261]
[1770172433057,2.59088099,2256.6,2255.6,0.16828261]
[1770172433248,8.02171772,2256.5,2255.6,0.16828261]
[1770172433447,3.78883673,2256.4,2255.6,0.16828261]
[1770172433653,3.78883673,2256.3,2255.6,0.16828261]
[1770172433951,4.23288099,2256.5,2255.6,0.16828261]
[1770172434151,6.38313595,2256.4,2255.6,0.16828261]
[1770172434355,3.79225496,2256.3,2255.6,0.16828261]
[1770172434657,4.23288099,2256.5,2255.6,0.16828261]
[1770172434959,3.78889635,2256.4,2255.6,0.16828261]
[1770172435258,3.78889635,2256.3,2255.6,0.16828261]
[1770172435458,2.59088099,2256.4,2255.6,0.16828261]
[1770172435654,3.793613,2256.3,2255.7,0.16709109]
[1770172435852,2.59088099,2256.4,2255.7,0.16709109]
[1770172436051,3.79608357,2256.3,2255.7,0.16709109]
[1770172436258,3.79608357,2256.2,2255.7,0.16709109]
[1770172436456,2.59088099,2256.4,2255.7,0.16709109]
[1770172436657,3.79986792,2256.3,2255.7,0.16709109]
[1770172436857,3.79986792,2256.2,2255.7,0.16709109]
[1770172437053,2.59088099,2256.4,2255.7,0.16709109]
[1770172437255,6.39067607,2256.3,2255.9,0.1626381]
[1770172437452,3.79979508,2256.2,2255.9,0.1626381]
[1770172437651,3.79979508,2256.1,2255.9,0.1626381]
[1770172437858,2.59088099,2256.3,2255.9,0.1626381]
[1770172438058,3.46783693,2256.2,2255.9,0.1626381]
[1770172438253,2.59088099,2256.2,2255.9,0.1626381]
[1770172438651,2.59088099,2256.2,2255.8,0.3846081]
[1770172440066,2.75038078,2256.1,2255.3,0.3846481]
[1770172440454,2.75038078,2256.1,2255.4,0.3846481]
[1770172442366,39.21132869,2256.4,2255.7,0.22197]
[1770172442560,6.49540264,2256.7,2255.9,0.22195]
[1770172442561,1.83549979,2256.7,2255.9,0.22195]
[1770172442866,0.1686989,2256.6,2255.9,0.22195]
[1770172443361,5.40504012,2256.9,2256.0,0.22194]
[1770172443566,1.69525937,2256.9,2256.1,0.22194]
[1770172444369,0.1678449,2256.8,2256.1,0.22194]
[1770172444572,0.1678449,2256.7,2255.6,0.868708]
[1770172444767,0.1678449,2256.5,2255.6,0.867]
[1770172445265,0.1678449,2256.3,2255.5,0.22199]
[1770172451865,5.23178075,2256.5,2255.6,0.22199]
[1770172452268,5.23178075,2256.4,2255.6,0.22199]
[1770172452472,5.4020259,2256.5,2255.7,0.22198]
[1770172453069,5.4020259,2256.5,2255.3,3.98815375]
[1770172453070,5.4020259,2256.5,2255.9,0.22196]
[1770172453369,0.17024515,2256.7,2255.9,0.22196]
[1770172455175,5.23178075,2256.8,2256.0,0.22195]
[1770172455373,5.40206559,2256.8,2256.0,0.22195]
[1770172455674,5.40206559,2256.8,2256.1,0.22194]
[1770172455675,0.17028484,2256.8,2256.1,0.22194]
[1770172456570,5.23634122,2256.9,2255.7,4.85515375]
[1770172456775,5.23634122,2256.9,2256.4,0.2219]
[1770172456776,4.7e-07,2256.9,2256.4,0.2219]
[1770172457070,0.17066676,2257.3,2256.6,0.22189]
[1770172457776,5.40244751,2257.5,2256.6,0.22189]
[1770172458168,0.17066676,2257.5,2256.6,0.22189]
[1770172458372,0.17629122,2257.5,2256.6,0.22189]
[1770172461976,0.00562446,2257.5,2256.7,0.22188]
[1770172462175,0.00562446,2257.5,2256.7,0.22689019]
[1770172462377,0.00562446,2257.5,2256.7,0.00501019]
[1770172462576,0.00562446,2257.5,2256.9,0.22186]
[1770172462772,0.17585653,2257.5,2256.7,0.00501019]
[1770172465377,0.17029022,2257.4,2256.0,0.22194]
[1770172465780,0.17029022,2257.1,2256.0,0.22194]
[1770172466278,0.17029022,2257.1,2256.0,0.22712858]
[1770172466681,0.17029022,2257.1,2256.0,0.00518858]
[1770172466878,0.17029022,2257.1,2256.3,0.22192]
[1770172472585,0.00562446,2257.5,2256.2,3.98815375]
[1770172472785,0.17699458,2257.5,2256.7,0.22188]
[1770172473080,0.17699458,2257.5,2256.8,0.22187]
[1770172473485,0.00562446,2257.5,2256.8,0.22187]
[1770172473685,0.17699458,2257.5,2256.8,0.22187]
[1770172474085,0.17699458,2257.5,2256.2,3.98815375]
[1770172474277,0.17146841,2257.3,2256.0,0.00518858]
[1770172474585,0.17146841,2256.9,2256.0,0.00518858]
[1770172478088,39.73614577,2256.9,2256.0,0.00518858]
[1770172478277,0.17953444,2256.8,2256.0,0.00518858]
[1770172479687,0.17953444,2256.8,2256.0,0.22712858]
[1770172481988,0.17930874,2257.1,2256.1,0.22194]
[1770172482489,0.17930874,2257.1,2256.3,0.22191]
[1770172483790,0.17930874,2257.4,2256.0,4.86034233]
[1770172483982,0.17930874,2257.4,2256.1,3.98815375]
[1770172484487,0.17930874,2257.4,2256.5,0.22189]
[1770172484689,0.17960598,2257.3,2256.1,3.98815375]
[1770172484988,0.17960598,2257.3,2256.0,1.09413858]
[1770172484989,0.17960598,2257.2,2256.0,1.09413858]
[1770172485190,0.17960598,2257.2,2256.1,0.22194]
[1770172488390,0.18203923,2257.1,2256.1,0.22194]
[1770172488590,0.18203923,2257.0,2256.1,0.22194]
[1770172489990,39.74671994,2257.3,2256.3,0.22192]
[1770172490190,0.18204258,2257.3,2256.3,0.22192]
[1770172492492,39.74522369,2257.2,2256.0,0.00518858]
[1770172492690,0.18054633,2257.1,2256.0,0.22713858]
[1770172493192,0.18054633,2257.1,2256.1,0.22194]
[1770172493590,0.18054633,2257.1,2256.2,0.22193]
[1770172494196,0.18054633,2257.1,2256.3,0.22192]
[1770172497902,0.18054633,2257.1,2255.6,6.56676082]
[1770172497903,0.18413856,2256.4,2255.4,0.222]
[1770172498094,0.18374024,2256.1,2255.2,0.866]
[1770172498992,0.18374024,2256.1,2255.2,0.86942084]
[1770172499701,0.18374024,2256.1,2255.3,0.22201]
[1770172500096,0.18374024,2256.1,2255.5,0.222]
[1770172500302,0.18357004,2256.4,2255.5,0.222]
[1770172502501,0.18357004,2256.4,2255.7,0.22198]
[1770172502802,0.18357004,2256.4,2255.8,0.867]
[1770172503297,2.18139974,2256.9,2255.8,7.37784708]
[1770172503505,0.18271119,2257.3,2256.6,0.22189]
[1770172503803,0.18271119,2257.3,2256.6,1.08889]
[1770172504700,0.00562446,2257.5,2257.0,0.22185]
[1770172504904,0.18270731,2257.7,2256.7,4.435]
[1770172505105,0.18270731,2257.5,2256.7,4.435]
[1770172505504,0.18270731,2257.4,2256.7,4.435]
[1770172505902,0.18270731,2257.4,2256.7,4.43932631]
[1770172505903,0.18652893,2257.4,2256.7,4.43932631]
[1770172506205,0.1835027,2257.1,2255.7,0.22197]
[1770172506404,0.1835027,2256.8,2255.7,0.22197]
[1770172506705,0.1835027,2256.8,2255.6,9.28915375]
[1770172506905,0.1835027,2257.1,2255.8,6.06400083]
[1770172507106,0.1835027,2257.1,2255.8,6.06856157]
[1770172507306,0.1835027,2257.1,2255.9,3.98815375]
[1770172508708,0.1835027,2257.1,2255.8,3.99271449]
[1770172508905,0.18165086,2256.9,2255.9,0.867]
[1770172512009,39.74419852,2257.2,2256.2,0.22192]
[1770172512405,0.17952116,2257.2,2256.2,0.22192]
[1770172514208,0.17896631,2257.1,2256.2,0.22192]
[1770172518205,0.17896631,2257.1,2255.9,0.867]
[1770172518407,0.17862288,2256.7,2255.9,0.867]
[1770172518603,0.17634251,2256.3,2255.6,2.84339658]
[1770172518802,39.56467736,2256.2,2255.6,1.71718611]
[1770172519702,39.56467736,2256.2,2255.6,0.00336968]
[1770172519910,39.56467736,2256.1,2255.1,0.867]
[1770172520806,39.56467736,2256.2,2255.1,0.87226996]
[1770172521011,39.56467736,2256.2,2255.1,0.00526996]
[1770172521012,39.56467736,2256.1,2255.1,0.00526996]
[1770172521213,39.56467736,2256.0,2255.1,0.00526996]
[1770172521413,39.56467736,2256.1,2255.1,0.00526996]
[1770172522610,6.33590285,2256.4,2255.1,0.00526996]
[1770172522611,39.56467736,2256.4,2255.1,0.17529967]
[1770172522812,39.56467736,2256.4,2255.2,0.22202]
[1770172523006,39.56467736,2256.4,2255.3,0.17002971]
[1770172523313,39.56467736,2256.5,2255.4,0.17002971]
[1770172524109,39.56467736,2256.6,2255.6,0.17101989]
[1770172524407,41.36267736,2256.7,2255.6,0.17101989]
[1770172525113,39.56467736,2256.7,2255.6,0.17101989]
[1770172525307,39.56467736,2256.8,2255.7,0.17101989]
[1770172527107,39.56467736,2256.8,2255.6,0.22199]
[1770172527414,41.64052444,2256.8,2255.6,0.22199]
[1770172528308,39.56467736,2257.1,2256.4,0.22191]
[1770172528514,0.00382162,2257.4,2256.5,0.2219]
[1770172528814,0.00382162,2257.4,2256.6,0.17113201]
[1770172529011,0.00382162,2257.4,2256.5,0.2219]
[1770172529210,0.00382162,2257.4,2256.1,0.17113201]
[1770172529411,0.00382162,2257.4,2256.1,1.03813201]
[1770172529412,39.56849898,2257.4,2256.1,1.03813201]
[1770172529713,39.56849898,2257.4,2256.2,0.17113201]
[1770172530106,39.56467736,2257.3,2256.2,0.17113201]
[1770172530410,39.56849898,2257.4,2256.2,0.17113201]
[1770172531112,39.56467736,2257.1,2255.9,0.17299704]
[1770172531316,39.56467736,2256.9,2255.6,5.69697704]
[1770172532613,39.56467736,2256.8,2255.6,0.22198]
[1770172532815,39.56467736,2256.6,2255.6,0.22198]
[1770172534519,39.56467736,2256.6,2255.4,0.867]
[1770172534709,41.38367736,2256.6,2255.4,0.867]
[1770172534911,39.56467736,2256.5,2255.4,0.867]
[1770172535115,39.56467736,2256.5,2255.2,4.82727674]
[1770172535116,39.56467736,2256.5,2255.2,1.25927674]
[1770172535319,39.56467736,2256.5,2255.3,0.39227674]
[1770172535616,41.38367736,2256.6,2255.5,0.17025674]
[1770172536018,39.56467736,2256.6,2255.6,0.22198]
[1770172536319,39.56467736,2256.6,2255.7,0.17016708]
[1770172536518,41.38767736,2256.9,2255.8,0.17016708]
[1770172536817,39.56467736,2256.9,2255.8,0.17016708]
[1770172538116,39.56467736,2257.0,2255.9,0.16959745]
[1770172538315,39.56467736,2257.0,2255.8,0.22197]
[1770172538515,39.56467736,2256.9,2255.8,0.22197]
[1770172539116,39.56467736,2257.0,2255.9,0.16959745]
[1770172540020,0.00116619,2256.6,2255.5,0.39001809]
[1770172540215,0.00116619,2256.6,2255.6,0.16802809]
[1770172541117,0.00116619,2256.6,2255.8,0.16802809]
[1770172541311,39.56584355,2256.9,2256.0,0.16802809]
[1770172541511,0.00116619,2256.9,2256.0,0.16802809]
[1770172542320,0.00116619,2256.9,2256.0,0.38996809]
[1770172545325,0.00116619,2256.9,2256.1,0.16827169]
[1770172545526,0.00116619,2256.9,2256.0,0.22194]
[1770172545825,0.00116619,2256.9,2256.0,0.39021169]
[1770172546426,39.56467736,2256.9,2256.0,0.39021169]
[1770172547824,39.56467736,2256.9,2256.0,0.22194]
[1770172551328,39.56467736,2256.8,2256.0,0.22194]
[1770172551930,39.56467736,2256.8,2255.6,2.65273616]
[1770172552130,0.00082644,2256.7,2255.6,2.65273616]
[1770172552332,0.00082644,2256.6,2255.7,0.16814721]
[1770172553733,0.00082644,2256.6,2255.7,0.39011721]
[1770172556035,0.00082644,2256.6,2255.8,0.16817046]
[1770172556631,39.56467736,2256.7,2255.8,0.16817046]
[1770172556837,39.56467736,2256.8,2256.0,0.39012046]
[1770172557038,39.56580026,2256.8,2256.1,0.16817046]
[1770172558043,39.56467736,2256.9,2256.2,0.17060038]
[1770172558643,39.56467736,2256.9,2256.1,0.22194]
[1770172559237,39.56467736,2256.9,2256.0,0.867]
[1770172559541,39.56467736,2256.8,2256.0,0.867]
[1770172560142,39.56467736,2256.7,2256.0,0.867]
[1770172560343,39.56467736,2256.7,2256.0,1.03819021]
[1770172561644,39.56467736,2256.7,2256.0,0.867]
[1770172561841,39.56467736,2256.7,2255.8,2.65273616]
[1770172561842,39.56467736,2256.5,2255.5,2.65273616]
[1770172562144,39.56467736,2256.3,2255.4,2.82392637]
[1770172562340,39.56467736,2256.3,2255.4,0.17119021]
[1770172563444,2.6444363,2256.2,2255.3,2.65273616]
[1770172563744,2.6444363,2256.0,2255.2,0.867]
[1770172564738,2.6444363,2256.0,2255.2,1.0387315]
[1770172564938,2.6444363,2256.0,2255.3,0.1717315]
[1770172565245,42.20911366,2256.1,2255.3,0.1717315]
[1770172565546,2.6444363,2256.0,2255.3,0.1717315]
[1770172566250,2.6444363,2256.1,2255.3,0.1717315]
[1770172566950,2.6444363,2256.3,2255.5,0.17187016]
[1770172567151,2.6444363,2256.5,2255.8,0.17187016]
[1770172567347,2.6444363,2256.5,2255.8,0.867]
[1770172567547,2.6444363,2256.4,2255.8,0.867]
[1770172567749,4.5514363,2256.3,2255.3,2.65273616]
[1770172567948,2.6444363,2256.1,2255.1,2.82987628]
[1770172568847,2.6444363,2256.1,2255.1,0.17714012]
[1770172569647,2.6444363,2255.8,2254.7,4.435]
[1770172569852,2.6444363,2255.3,2254.3,0.17192999]
[1770172570144,2.6444363,2255.2,2254.3,1.03892999]
[1770172570349,2.6444363,2255.3,2254.3,1.03892999]
[1770172570550,2.6444363,2255.3,2254.4,0.17273302]
[1770172570745,2.64756683,2255.3,2254.4,0.17701156]
[1770172571353,0.00313053,2255.3,2254.4,0.17701156]
[1770172571852,0.00313053,2255.3,2254.4,0.00427854]
[1770172572052,4.435,2256.3,2255.0,0.17273302]
[1770172572053,2.6444363,2256.2,2255.0,0.17273302]
[1770172572248,2.6444363,2256.2,2255.1,0.867]
[1770172572848,2.6444363,2256.1,2255.1,0.867]
[1770172573046,2.64972138,2256.1,2255.1,0.867]
[1770172573250,2.64972138,2256.1,2254.9,0.867]
[1770172573251,2.6444363,2256.0,2254.9,0.867]
[1770172574748,2.6444363,2256.0,2255.0,0.17320113]
[1770172578050,2.6444363,2256.0,2254.9,0.867]
[1770172579855,2.6444363,2255.9,2254.9,0.867]
[1770172580653,2.6444363,2255.9,2254.9,1.03943143]
[1770172582653,2.6444363,2255.9,2255.0,0.17209518]
[1770172583049,4.56172138,2256.1,2255.1,0.17209518]
[1770172584555,2.6444363,2256.0,2255.0,0.22205]
[1770172585056,2.6444363,2256.0,2254.9,1.03921007]
[1770172585455,2.6444363,2255.9,2254.9,0.17221007]
[1770172587253,2.6444363,2255.8,2254.5,0.39455061]
[1770172587452,39.56467736,2255.9,2254.5,0.39455061]
[1770172587453,2.6444363,2255.5,2254.6,0.17246061]
[1770172587654,2.6444363,2255.6,2254.6,0.17246061]
[1770172588250,2.6444363,2255.5,2254.6,0.17246061]
[1770172588454,2.6444363,2255.7,2254.8,0.17244748]
[1770172588659,2.6444363,2255.8,2254.8,0.17244748]
[1770172588859,2.6444363,2255.8,2254.9,0.17244748]
[1770172589359,2.6444363,2255.8,2255.0,0.17244748]
[1770172591162,2.6444363,2255.9,2255.2,0.1736738]
[1770172591362,2.64972138,2256.1,2255.3,0.1736738]
[1770172592062,0.00528508,2256.1,2255.3,0.1736738]
[1770172593464,0.00528508,2256.1,2255.5,0.17370301]
[1770172594261,2.64972138,2256.1,2255.5,0.17370301]
[1770172594462,0.00528508,2256.1,2255.5,0.17370301]
[1770172594966,2.64972138,2256.1,2255.5,0.17370301]
[1770172595965,0.00528508,2256.1,2255.5,0.17370301]
[1770172596262,2.6444363,2256.5,2255.7,0.39358447]
[1770172596566,2.6444363,2256.7,2255.9,0.17161447]
[1770172596865,2.6444363,2256.7,2256.0,0.17161447]
[1770172597064,2.6444363,2256.8,2256.0,0.17161447]
[1770172597264,2.6444363,2256.8,2256.0,0.17554824]
[1770172597265,2.64833084,2256.8,2256.0,0.17554824]
[1770172598158,0.6763743,2257.0,2256.4,0.15347294]
[1770172598363,0.15468775,2257.6,2256.7,0.37534294]
[1770172598559,0.15468775,2257.9,2256.8,0.15347294]
[1770172598763,0.15468775,2257.9,2256.9,0.15347294]
[1770172598966,0.15468775,2257.9,2257.0,0.37531294]
[1770172599162,0.15812144,2257.9,2257.1,0.15347294]
[1770172599461,0.15812144,2257.9,2257.2,0.867]
[1770172599669,0.00343369,2257.9,2257.3,0.15347294]
[1770172599864,0.15468775,2258.2,2257.2,1.08883]
[1770172600066,0.15468775,2258.2,2257.2,0.867]
[1770172600864,0.15955686,2258.2,2257.2,0.867]
[1770172604270,0.15955686,2258.2,2257.3,0.15347294]
[1770172604663,0.00486911,2258.2,2257.3,0.15347294]
[1770172604864,0.15955686,2258.2,2257.3,0.15347294]
[1770172605568,0.15955686,2258.2,2257.6,0.22179]
[1770172605767,0.15955686,2258.2,2257.6,0.2266437]
[1770172606963,0.15955686,2258.2,2257.6,0.38011664]
[1770172606964,0.00486911,2258.2,2257.6,0.38011664]
[1770172607668,0.00486911,2258.2,2257.7,0.15347294]
[1770172608467,0.00486911,2258.2,2257.6,0.2266437]
[1770172608869,0.15955686,2258.2,2257.6,0.0048537]
[1770172609566,0.15955686,2258.2,2257.1,0.866]
[1770172609772,0.15468775,2258.0,2256.9,4.433]
[1770172610370,0.15468775,2258.0,2257.0,0.15347294]
[1770172610670,0.15468775,2258.0,2257.0,0.15813535]
[1770172612267,0.15468775,2258.0,2257.1,0.16816945]
[1770172612573,0.00486911,2258.2,2257.4,0.16816945]
[1770172612976,0.16772139,2258.2,2257.4,0.16816945]
[1770172613876,0.00486911,2258.2,2257.5,0.16816945]
[1770172614270,0.00486911,2258.2,2257.7,0.16816945]
[1770172614674,0.16285228,2259.2,2257.8,0.16816945]
[1770172615474,0.16285228,2259.2,2257.9,0.16816945]
[1770172615674,0.16805045,2259.2,2257.9,0.16816945]
[1770172616573,0.16805045,2259.2,2257.8,4.65477]
[1770172618979,0.16805045,2259.2,2258.1,0.16277258]
[1770172619179,0.16805045,2259.2,2258.2,0.38450258]
[1770172619377,0.16805045,2259.2,2258.2,0.22173]
[1770172620674,0.16805045,2259.2,2258.2,0.38450258]
[1770172621576,0.16805045,2259.2,2258.2,0.22173]
[1770172622277,0.16805045,2259.2,2257.6,0.38455258]
[1770172622478,0.16805045,2259.2,2257.8,0.866]
[1770172622673,0.16805045,2259.2,2256.7,31.025]
[1770172622674,0.15873869,2258.8,2257.3,0.38459258]
[1770172622876,0.15873869,2258.8,2257.3,0.22182]
[1770172623172,0.15873869,2258.8,2257.3,0.38459258]
[1770172623676,0.15873869,2258.8,2257.4,0.16277258]
[1770172624074,0.15873869,2258.8,2257.0,4.43666241]
[1770172624075,2.45427977,2258.5,2257.0,0.00466241]
[1770172624277,0.15873869,2258.2,2257.0,0.16743499]
[1770172624777,0.15873869,2258.2,2257.1,0.16277258]
[1770172625176,0.15873869,2258.2,2257.1,0.38461258]
[1770172625674,0.15873869,2258.2,2256.6,2.62576311]
[1770172625675,0.15873869,2257.9,2256.5,0.2219]
[1770172625874,0.15873869,2257.9,2256.5,0.38467258]
[1770172626174,0.15873869,2257.8,2256.6,0.16277258]
[1770172626575,0.15873869,2257.8,2256.7,0.16277258]
[1770172626773,0.15873869,2257.8,2256.9,0.16277258]
[1770172627273,0.15873869,2258.1,2257.1,0.16277258]
[1770172627577,0.15873869,2258.1,2257.2,0.16277258]
[1770172628176,5.39051944,2258.4,2257.4,0.16277258]
[1770172628378,39.65586165,2258.3,2257.4,0.16277258]
[1770172629078,39.81460034,2258.3,2257.4,0.16277258]
[1770172629282,0.15873869,2258.2,2257.4,0.16277258]
[1770172629579,0.15873869,2258.2,2257.3,0.22182]
[1770172629979,0.15873869,2258.2,2257.1,5.46077258]
[1770172630181,0.15873869,2258.1,2257.1,5.46077258]
[1770172630479,0.15873869,2258.1,2257.2,0.16277258]
[1770172630980,39.81460034,2258.0,2256.6,2.80775825]
[1770172631176,0.15873869,2257.8,2256.4,7.07698567]
[1770172631379,2.07383108,2258.1,2256.0,0.1]
[1770172631380,0.15873869,2256.8,2256.0,0.1]
[1770172631580,39.65586165,2257.3,2256.0,0.1]
[1770172631581,39.81460034,2257.1,2256.1,0.16277258]
[1770172631776,0.15873869,2257.1,2256.1,0.16277258]
[1770172632076,0.15873869,2257.1,2256.1,4.59237259]
[1770172632283,0.16265174,2257.1,2256.1,0.00572151]
[1770172632885,0.15873869,2257.0,2256.1,0.00572151]
[1770172633283,0.15873869,2257.0,2256.1,0.16849409]
[1770172634086,0.16265174,2257.1,2256.2,4.59237259]
[1770172634288,0.16265174,2257.1,2256.2,0.16277258]
[1770172634586,0.16265174,2257.1,2256.3,4.42960001]
[1770172635086,0.16265174,2257.1,2256.4,4.42960001]
[1770172635286,0.16265174,2257.1,2256.3,4.42960001]
[1770172635688,0.16265174,2257.1,2256.4,4.42960001]
[1770172635986,0.16265174,2257.1,2256.3,4.59237259]
[1770172636487,0.16265174,2257.1,2256.4,4.42960001]
[1770172637388,0.16265174,2257.1,2256.3,0.16277258]
[1770172637689,0.16265174,2257.1,2256.4,4.42960001]
[1770172637994,0.00391305,2257.1,2256.1,0.00572151]
[1770172638194,0.00391305,2257.1,2256.1,0.17394096]
[1770172640595,0.00510517,2257.1,2256.1,0.17394096]
[1770172641094,0.00119212,2257.0,2256.1,0.00572151]
[1770172641296,39.65705377,2257.0,2256.1,0.00572151]
[1770172641495,0.00119212,2256.9,2256.1,0.00572151]
[1770172643694,0.00198759,2256.8,2255.6,0.16746712]
[1770172644188,0.00204772,2256.7,2255.3,4.82344705]
[1770172644391,0.00204772,2256.7,2255.4,0.16743705]
[1770172644591,0.00204772,2256.7,2255.4,0.17134551]
[1770172644800,0.00204772,2256.3,2255.4,0.00390846]
[1770172645097,0.00204772,2256.2,2255.4,0.00390846]
[1770172645398,0.00204772,2256.2,2255.1,0.16743705]
[1770172645598,39.65586165,2256.7,2255.5,0.222]
[1770172645798,0.00204772,2256.7,2255.6,0.16743705]
[1770172646391,0.00391305,2257.1,2256.4,0.16714215]
[1770172646598,0.00391305,2257.1,2256.8,3.20418067]
[1770172646894,0.00263752,2257.6,2256.5,0.16714215]
[1770172647194,6.35863752,2257.9,2256.7,0.16714215]
[1770172647399,0.82141703,2258.0,2256.8,0.16714215]
[1770172647700,0.82820493,2258.0,2256.8,3.20418067]
[1770172647901,0.82820493,2258.0,2256.9,3.20418067]
[1770172648100,0.82820493,2258.0,2256.9,0.16714215]
[1770172648299,0.82820493,2258.0,2256.9,3.20418067]
[1770172648501,0.82556741,2258.0,2257.0,0.17472317]
[1770172649599,0.82556741,2258.0,2256.7,0.39659317]
[1770172649600,40.48142906,2258.0,2256.7,0.39659317]
[1770172649900,41.72969273,2257.9,2256.7,0.17472317]
[1770172650300,39.65586165,2257.8,2256.4,4.60783822]
[1770172650502,2.07383108,2257.5,2256.2,0.17283822]
[1770172651403,41.72969273,2257.5,2256.2,0.17283822]
[1770172652301,39.65586165,2257.4,2256.2,0.17283822]
[1770172652702,39.65586165,2257.4,2256.2,3.20987674]
[1770172652900,39.65586165,2257.4,2256.3,0.1728571]
[1770172653096,41.72969273,2257.5,2256.4,0.1728571]
[1770172653300,39.65586165,2257.4,2256.4,0.1728571]
[1770172653700,39.65586165,2257.4,2256.4,3.20989562]
[1770172654705,39.65586165,2257.4,2256.8,0.17256816]
[1770172655004,39.65586165,2257.6,2256.8,0.17256816]
[1770172655400,39.65586165,2257.5,2256.8,3.03703852]
[1770172655597,39.65586165,2257.4,2256.2,0.39449816]
[1770172655902,39.65586165,2257.4,2256.2,3.20960668]
[1770172655903,41.59786165,2257.3,2256.2,3.20960668]
[1770172656098,41.59786165,2257.3,2256.3,3.03703852]
[1770172656600,41.59786165,2257.3,2256.4,3.03703852]
[1770172656601,39.65586165,2257.2,2256.4,3.03703852]
[1770172656800,39.65586165,2256.9,2255.9,0.17258686]
[1770172657000,1.945,2256.8,2255.9,0.17258686]
[1770172657197,1.945,2256.8,2256.0,3.03703852]
[1770172657404,41.60086165,2256.8,2256.1,3.03703852]
[1770172657805,41.60086165,2256.8,2256.2,3.03703852]
[1770172658005,41.60086165,2256.8,2256.1,3.03703852]
[1770172658301,2.6340935,2256.7,2256.1,3.03703852]
[1770172658503,2.6340935,2256.7,2256.2,3.03703852]
[1770172658705,2.6340935,2256.7,2256.1,3.03703852]
[1770172658905,2.6340935,2256.7,2255.6,0.17820202]
[1770172659102,2.6340935,2256.5,2255.7,3.03703852]
[1770172659300,2.6340935,2256.4,2255.8,0.17300892]
[1770172659608,0.00520765,2256.4,2256.0,3.21004744]
[1770172660102,0.00520765,2256.4,2256.3,3.03703852]
[1770172660310,0.00054983,2256.4,2256.2,3.2103515]
[1770172660506,0.00054983,2256.4,2256.3,3.03703852]
[1770172660704,0.00054983,2256.4,2256.1,3.03703852]
[1770172660903,0.00054983,2256.4,2256.2,3.03703852]
[1770172661100,0.00054983,2256.4,2255.9,0.17331298]
[1770172661315,0.00054983,2256.4,2256.3,3.2103515]
[1770172661603,2.6340935,2256.6,2256.4,0.17331298]
[1770172661804,0.15289611,2257.4,2256.3,0.15441135]
[1770172662001,0.15289611,2257.2,2256.3,0.15441135]
[1770172662405,12.0,2257.1,2256.3,0.15441135]
[1770172662706,12.00556627,2257.2,2256.4,0.15441135]
[1770172663903,12.00556627,2257.2,2256.4,4.11532325]
[1770172664209,12.00556627,2257.2,2256.5,4.30957959]
[1770172664409,12.00556627,2257.2,2256.4,0.15441135]
[1770172665011,12.00556627,2257.2,2256.5,0.15441135]
[1770172665310,12.00556627,2257.2,2256.5,4.4877066]
[1770172665509,12.00556627,2257.2,2256.5,0.15441135]
[1770172665812,0.15289611,2257.8,2256.5,0.15441135]
[1770172666108,12.15289611,2257.8,2256.5,0.15441135]
[1770172666310,0.15289611,2257.7,2256.5,0.15441135]
[1770172666710,12.15289611,2257.6,2256.5,0.15441135]
[1770172666910,0.15289611,2257.6,2256.5,0.15441135]
[1770172667111,12.0,2257.5,2256.5,0.15441135]
[1770172667713,12.0,2257.5,2256.7,0.15441135]
[1770172668606,0.00488426,2257.8,2256.6,3.9609119]
[1770172668811,0.16846091,2258.9,2257.5,0.2218]
[1770172669011,0.16846091,2258.9,2257.6,9.2619119]
[1770172669209,9.33800863,2258.8,2257.9,3.9609119]
[1770172669409,9.33800863,2258.8,2258.0,4.33266417]
[1770172669707,0.00313303,2258.8,2258.0,0.0034195]
[1770172670014,0.16846091,2259.2,2258.1,4.1826419]
[1770172670212,9.33800863,2259.1,2258.2,0.867]
[1770172670412,9.33800863,2259.1,2258.2,5.40840378]
[1770172670608,9.33800863,2259.1,2258.2,1.08873]
[1770172670916,9.33800863,2259.1,2258.3,0.22172]
[1770172671211,9.34351046,2259.1,2258.3,0.22172]
[1770172671410,0.1685288,2259.0,2258.0,0.0034195]
[1770172671611,0.1685288,2258.8,2258.0,0.0034195]
[1770172672012,4.6005288,2258.6,2258.0,0.0034195]
[1770172672214,0.1685288,2258.6,2258.0,0.0034195]
[1770172672515,9.50721826,2258.6,2258.0,0.0034195]
[1770172672905,9.33800863,2258.6,2258.0,0.0034195]
[1770172673714,0.16920963,2258.9,2258.0,0.0034195]
[1770172673914,9.33800863,2258.8,2258.0,0.0034195]
[1770172674218,9.50786666,2258.8,2258.0,0.0034195]
[1770172675820,0.16985803,2258.7,2258.0,0.0034195]
[1770172676010,4.60185803,2258.7,2258.0,0.0034195]
[1770172676314,13.77000863,2258.6,2258.0,0.8694195]
[1770172677621,0.00550183,2259.1,2258.0,0.8694195]
[1770172677622,0.17119084,2259.0,2258.0,0.8694195]
[1770172677820,13.94119947,2259.0,2258.0,0.8694195]
[1770172679123,0.1746996,2258.9,2258.0,0.8694195]
[1770172679721,9.33800863,2258.8,2258.0,0.8694195]